Cogmind - Beta 16 @@@ ROGUE MODE // 2025.12.12 @ 23:56:52 Player: surprisinglarge Result: Self-destructed Performance ------------- Evolutions (1) 500 Regions Visited (3) 600 Robots Destroyed (22) 110 Value Destroyed (778) 778 Prototype IDs (0) 0 Alien Tech Used (0) 0 Bonus (0) 0 TOTAL SCORE: 1988 Bonus ------- None Cogmind --------- Core Integrity 262/400 Matter 300/300 Energy 100/100 System Corruption 3% Temperature Cool (0) Movement Rolling (115) Ox1 Location -9/Storage Parts ------- > --- POWER (1) -------- (None) > --- PROPULSION (3) --- Compact Wheel > --- UTILITY (3) ------ Medium Storage Unit Medium Storage Unit > --- WEAPON (2) ------- Heavy Assault Rifle > --- INVENTORY (10) --- Machine Analyzer EM Pulse Cannon Peak State ------------ > --- POWER ------------ Ion Engine > --- PROPULSION ------- Aluminum Leg Aluminum Leg Aluminum Leg > --- UTILITY ---------- Improved Heat Sink Medium Storage Unit Medium Storage Unit > --- WEAPON ----------- Particle Gun Heavy Assault Rifle > --- INVENTORY -------- Machine Analyzer Small Laser EM Pulse Cannon [Rating: 13] Favorites ----------- Power Ion Engine Engine Ion Engine Propulsion Aluminum Leg Leg Aluminum Leg Wheel Compact Wheel Utility Medium Storage Unit Device Improved Heat Sink Storage Medium Storage Unit Weapon Particle Gun Energy Gun Particle Gun Ballistic Gun Light Assault Rifle Build | -11 -10 -9 -9 ------- Run | Yrd Mat Mat Sto Slots Evolved 2 | . . 2 . Power . | . . . . Propulsion 1 | . . 1 . Utility 1 | . . 1 . Weapon . | . . . . Parts Attached 16 | 5 2 8 1 Power 2 | 1 . 1 . Engine 2 | 1 . 1 . Core . | . . . . Reactor . | . . . . Propulsion 6 | 2 . 3 1 Treads . | . . . . Leg 5 | 2 . 3 . Wheel 1 | . . . 1 Hover . | . . . . Flight . | . . . . Utility 3 | . 2 1 . Device 1 | . 1 . . Storage 2 | . 1 1 . Processor . | . . . . Hackware . | . . . . Protection . | . . . . Artifact . | . . . . Weapon 5 | 2 . 3 . Energy Gun 2 | . . 2 . Energy Cannon . | . . . . Ballistic Gun 3 | 2 . 1 . Ballistic Cannon . | . . . . Launcher . | . . . . Special Weapon . | . . . . Impact Weapon . | . . . . Slashing Weapon . | . . . . Piercing Weapon . | . . . . Special Melee Weapon . | . . . . Unidentified Prototypes . | . . . . Parts Lost 8 | . . 2 6 Power 1 | . . . 1 Propulsion 4 | . . 1 3 Utility 1 | . . . 1 Weapon 2 | . . 1 1 Highest Loss Streak 5 | . . 2 5 To Critical Strikes . | . . . . Average Backups 1 | . . . 2 Power . | . . . . Propulsion . | . . . . Utility . | . . . 1 Weapon . | . . . 1 Tool/Special . | . . . . Unused Backups 2 | . . . 2 Power . | . . . . Propulsion . | . . . . Utility 1 | . . . 1 Weapon 1 | . . . 1 Tool/Special . | . . . . Average Slot Usage (%) 90 | . 84 89 93 Engine 11 | . 14 11 10 Leg 28 | . 28 27 28 Device 9 | . 1 11 11 Storage 19 | . 11 18 22 Energy Gun 8 | . . 12 9 Ballistic Gun 13 | . 28 8 11 Peak Build Rating 13 | 5 9 13 13 Average Rating 10 | 3 6 10 12 On Entrance 6 | . 5 9 13 Avg Prop Armor Cover (%) . | . . . . Naked Turns . | . . . . Heaviest Build 32 | 7 18 32 32 Greatest Support 30 | 20 20 30 30 Greatest Overweight (x) 7 | 1 . 2 7 Average Overweight (x) . | . . . 1 Largest Inventory Capacity 10 | 5 10 10 10 Average Capacity 9 | 5 9 10 10 Most Carried 4 | 4 1 3 3 Average Carried 1 | . . . 2 Final Capacity 10 | 5 10 10 10 Final Carried 2 | . . 2 2 Class Distribution -------------------- 60% | Scavenger-Mutant 39% | Mutant Dominant Class ---------------- Mutant | -10/Materials Scavenger-Mutant | -9/Materials Scavenger-Mutant | -9/Storage Resources | -11 -10 -9 -9 ----------- Run | Yrd Mat Mat Sto Matter Collected 495 | 223 81 97 94 Remotely . | . . . . Salvage Created 1002 | . 217 274 511 Parts 63 | . 8 22 33 Haulers Intercepted . | . . . . Recyclers Shooed 1 | . . . 1 Parts Field Recycled . | . . . . Retrieved Matter . | . . . . Parts Self-Destructed . | . . . . Prevented . | . . . . Parts Restored . | . . . . Kills | -11 -10 -9 -9 ------- Run | Yrd Mat Mat Sto Combat Hostiles Destroyed 19 | . 5 6 8 Guns 19 | . 5 6 8 Classes Destroyed 6 | . 1 2 3 Recycler 1 | . . . 1 Operator 1 | . . . 1 Watcher 1 | . . 1 . Grunt 13 | . 5 5 3 Duelist 1 | . . . 1 Sentry 5 | . . 1 4 Best Kill Streak 5 | . 5 3 4 Combat Bots Only 5 | . 5 3 3 Max Kills in Single Turn 1 | . 1 1 1 Gunslinging . | . . . . Exploded . | . . . . Melee . | . . . . Uniques/NPCs Destroyed . | . . . . Combat | -11 -10 -9 -9 -------- Run | Yrd Mat Mat Sto Hostile Shots Fired 101 | . 20 31 50 Missed 23 | . 2 8 13 Hits 78 | . 18 23 37 Melee 1 | . . . 1 Projectile 77 | . 18 23 36 Critical Strikes 5 | . . 1 4 Damage Taken 1111 | . 234 328 549 Core 191 | . 53 74 64 Absorbed by Shields . | . . . . Core Remaining (%) 89 | 100 78 . . Volleys Fired 72 | . 17 21 34 Largest 2 | . 2 2 2 Hottest 105 | . 40 105 88 Shots Fired 127 | . 34 39 54 Gun 127 | . 34 39 54 Cannon . | . . . . Launcher . | . . . . Special . | . . . . Kinetic 95 | . 34 27 34 Thermal 32 | . . 12 20 Explosive . | . . . . Electromagnetic . | . . . . Robot Hit Streak 12 | . 12 4 9 Robot Miss Streak 4 | . 3 4 3 Penetration Max . | . . . . Secondary Targets 1 | . . 1 . Max Gunslinging Chain 1 | . . 1 . Shots Hit Robots 83 | . 23 22 38 Core Hits 44 | . 13 14 17 Critical Kills 1 | . . . 1 Critical Parts Destroyed . | . . . . Critical Strikes 2 | . . 1 1 Burn 1 | . . 1 . Destroy 1 | . . . 1 Melee Attacks . | . . . . Impact . | . . . . Slashing . | . . . . Piercing . | . . . . Sneak Attacks . | . . . . Combat Hostiles . | . . . . Follow-up Attacks . | . . . . Damage Inflicted 998 | . 183 222 593 Guns 974 | . 183 222 569 Cannons . | . . . . Explosions . | . . . . Melee . | . . . . Ramming 24 | . . . 24 Kinetic 666 | . 183 123 360 Thermal 308 | . . 99 209 Explosive . | . . . . Electromagnetic . | . . . . Impact . | . . . . Slashing . | . . . . Piercing . | . . . . Highest Corruption 3 | . . . 3 Average Corruption 3 | . . . 3 Corruption Purged . | . . . . Corruption Blocked . | . . . . Overload Shots . | . . . . Overflow Damage . | . . . . Projectiles . | . . . . Explosions . | . . . . Melee . | . . . . Knockbacks . | . . . . Impact . | . . . . Kinetic . | . . . . Secondary . | . . . . Self-Inflicted Damage 11 | . . . 11 Shots . | . . . . Rammed 4 | . . . 4 Targets Rammed 4 | . . . 4 Kicked . | . . . . Crushed . | . . . . Highest Temperature 19 | . 18 16 19 Average Temperature 7 | . 8 7 4 Received Heat Transfer 552 | . 129 180 243 Siege Activations . | . . . . Martial Activations . | . . . . Shielding Activations . | . . . . Robots Disrupted . | . . . . Combat Hostiles . | . . . . Robots Corrupted . | . . . . Combat Hostiles . | . . . . Parts Fried . | . . . . Impact Corruptions . | . . . . Robots Melted . | . . . . Combat Hostiles . | . . . . Parts Melted 1 | . . . 1 Heat Transferred 827 | . . 309 518 Parts Sabotaged . | . . . . Parts Stolen . | . . . . Parts Stripped . | . . . . Power Chain Reactions . | . . . . Alert | -11 -10 -9 -9 ------- Run | Yrd Mat Mat Sto Maximum Alert Level . | . . . . Low Security (%) 100 | 100 100 100 100 Level 1 . | . . . . Level 2 . | . . . . Level 3 . | . . . . Level 4 . | . . . . Level 5 . | . . . . High Security . | . . . . Max Security . | . . . . Peak Influence 115 | . 115 64 70 Initial 44 | . . 44 13 Average 24 | . 31 32 20 Influence Increases 502 | . 135 147 220 Destroy 0b10 Robot/C 380 | . 100 120 160 Destroy 0b10 Robot/NC 15 | . . 5 10 Destroy Leader 92 | . 20 22 50 Lose Combat Pursuer 15 | . 15 . . Influence Decreases 443 | . 30 221 192 Entered New Map 79 | . . 61 18 Time Decay 334 | . 30 140 164 Lost Part 30 | . . 20 10 Squads Dispatched 1 | . 1 . . Investigation 1 | . 1 . . Extermination . | . . . . Reinforcement . | . . . . Assault . | . . . . Garrison . | . . . . Intercept . | . . . . Searches Triggered . | . . . . Construction Impeded . | . . . . Haulers Reinforced . | . . . . Active Scanning Responses . | . . . . Cargo Convoy Interrupts . | . . . . Stealth | -11 -10 -9 -9 --------- Run | Yrd Mat Mat Sto Distress Signals 1 | . . 1 . Communications Jammed . | . . . . Distress Signals . | . . . . Times Spotted 26 | . 5 8 13 Peak Tracking Total 6 | . 6 4 2 Tactical Retreats 1 | . 1 . . Traps | -11 -10 -9 -9 ------- Run | Yrd Mat Mat Sto Traps Triggered 1 | . 1 . . Indirectly . | . . . . Trap Hack Attempts . | . . . . Triggered . | . . . . Disarmed . | . . . . Reprogrammed . | . . . . Reused . | . . . . Traps Extracted . | . . . . Installed . | . . . . Triggered . | . . . . Machines | -11 -10 -9 -9 ---------- Run | Yrd Mat Mat Sto Machines Disabled . | . . . . Max in Single Turn . | . . . . Machines Repaired . | . . . . Machines Dismantled . | . . . . Machines Sabotaged . | . . . . Overloaded Fab Kills . | . . . . Hacking | -11 -10 -9 -9 --------- Run | Yrd Mat Mat Sto Machines Accessed . | . . . . Terminals . | . . . . Fabricators . | . . . . Repair Stations . | . . . . Recycling Units . | . . . . Scanalyzers . | . . . . Garrison Access . | . . . . Total Hacks . | . . . . Successful . | . . . . Failed . | . . . . Catastrophic . | . . . . Database Lockouts . | . . . . Manual . | . . . . Terminals . | . . . . Fabricators . | . . . . Repair Stations . | . . . . Recycling Units . | . . . . Scanalyzers . | . . . . Garrison Access . | . . . . Terminal Hacks . | . . . . Fabricator Hacks . | . . . . Repair Station Hacks . | . . . . Recycling Unit Hacks . | . . . . Scanalyzer . | . . . . Garrison Access Hacks . | . . . . Unauthorized Hacks . | . . . . Terminals . | . . . . Fabricators . | . . . . Repair Stations . | . . . . Recycling Units . | . . . . Scanalyzers . | . . . . Garrison Access . | . . . . Data Cores Recovered 1 | . . . 1 Used . | . . . . Hacking Detections . | . . . . Full Trace Events . | . . . . Feedback Events . | . . . . Feedback Blocked . | . . . . Robot Schematics Acquired . | . . . . Robots Built . | . . . . Authchips . | . . . . Time . | . . . . Total Robot Build Rating . | . . . . Part Schematics Acquired . | . . . . Parts Built . | . . . . Authchips . | . . . . Time . | . . . . Total Part Build Rating . | . . . . Part Studies Acquired . | . . . . Parts Repaired . | . . . . Time . | . . . . Parts Recycled . | . . . . Recycled Matter . | . . . . Retrieved Matter . | . . . . Retrieved Components . | . . . . Parts Scanalyzed . | . . . . Part Schematics Acquired . | . . . . Parts Damaged . | . . . . Bothacking | -11 -10 -9 -9 ------------ Run | Yrd Mat Mat Sto Used RIF Installer . | . . . . Robots Hacked . | . . . . Non-combat . | . . . . Combat . | . . . . Robot Hacks Applied . | . . . . Relay Couplers Released . | . . . . Fabnet Peak Effective % . | . . . . Robots Rewired . | . . . . Allies Hacked . | . . . . Hacks Repelled . | . . . . Allies | -11 -10 -9 -9 -------- Run | Yrd Mat Mat Sto Total Allies . | . . . . Largest Group . | . . . . Highest-Rated Group . | . . . . Highest-Rated Ally . | . . . . Total Orders . | . . . . Ally Attacks . | . . . . Total Damage . | . . . . Kills . | . . . . Allies Corrupted . | . . . . Allies Melted . | . . . . Intel | -11 -10 -9 -9 ------- Run | Yrd Mat Mat Sto Active Infowar (turns) . | . . . . Robot Analysis Total . | . . . . Derelict Logs Recovered . | . . . . Drone Launches . | . . . . Drone Recoveries . | . . . . Exploration | -11 -10 -9 -9 ------------- Run | Yrd Mat Mat Sto Turns Passed 967 | 57 152 291 467 Spaces Moved 495 | 44 87 168 196 Core 18 | 16 . . 2 Treads . | . . . . Legs 461 | 28 87 168 178 Wheels 16 | . . . 16 Hover . | . . . . Flight . | . . . . Fastest Speed 50 | 50 120 120 115 Average Speed 148 | 109 120 128 186 Slowest Speed 400 | 120 120 260 400 Overloaded Moves . | . . . . Propulsion Burnouts . | . . . . Robots Hopped . | . . . . Potential Cave-ins . | . . . . Cave-ins Triggered . | . . . . Exploration Rate (%) 17 | 3 16 20 32 Regions Visited 3 Branch Regions 1 Pre-discovered Areas . | . . . . Known Exits Taken . | . . . . Unknown Exits Taken 3 | 1 1 1 . Scrap Searched . | . . . . Spaces Dug . | . . . . Terrain Destroyed . | . . . . Melee . | . . . . Projectile . | . . . . AOE . | . . . . Terrain Rammed . | . . . . Walls Destroyed . | . . . . Machines Disabled . | . . . . Actions | -11 -10 -9 -9 --------- Run | Yrd Mat Mat Sto Total 613 | 53 107 210 243 Wait 7 | . . . 7 Move 492 | 43 86 167 196 Hop . | . . . . Pick Up 18 | 5 2 10 1 Fast Attach . | . . . . Attach 13 | 5 2 5 1 Detach . | . . . . Swap 3 | . . 3 . Drop 4 | . . 4 . Fire 72 | . 17 21 34 Melee . | . . . . Ram 4 | . . . 4 Kick . | . . . . Crush . | . . . . Escape Stasis . | . . . . Rewire . | . . . . Trap . | . . . . Miscellaneous . | . . . . Route ------- -11/Scrapyard -10/Materials -9/Materials -9/Storage History --------- Turn | Location | Event 11 | -11/Scrapyard | Discovered new exit (range 15) 58 | -11/Scrapyard | Entered Materials 190 | -10/Materials | Discovered new exit (range 12) 210 | -10/Materials | Entered another Materials area 210 | -9/Materials | Evolved 2 slots: Propulsion x1, Utility x1 317 | -9/Materials | Build established: Mutant 463 | -9/Materials | Discovered new exit (range 5) 501 | -9/Materials | Entered Storage 634 | -9/Storage | Build established: Scavenger-Mutant 951 | -9/Storage | Lost 5 parts (1p3n1w) 968 | -9/Storage | Self-destructed Last Messages --------------- R-06 Scavenger collects Sml. Storage Unit. R-06 Scavenger collects Com. Wheel. R-06 Scavenger collects Lgt. Armor Plating. R-06 Scavenger collects Hacking Suite. Acquired Com. Wheel. R-06 Scavenger collects Heat Sink. R-06 Scavenger collects Sml. Laser. Acquired 10 matter. R-06 Scavenger collects Tractor Beam. Slammed into M-13 Machinist. [Achievement: For Emergencies Only] R-06 Scavenger collects Heat Sink. Slammed into R-06 Scavenger. K-01 Serf collects debris. Slammed into K-01 Serf. Slammed into R-06 Scavenger. Imp. Heat Sink destroyed. System corrupted by crushing effect (+3). G-34 Mercenary destroyed. Acquired 3 matter. Map ----- +----------------------------------------------------+ | # """""" + % #??? | | % %+ "????" ### #??? | | % # "????" #?## ##??? | | ########## # """""" #??# #???? | | ###??????# # #??# #???? | | ""######## #####+#####??# #???? | | T"# # #???# #??????# #???? | | ""# !! # ##### ######## #???? | | ### ! + ^ #???? | | #?# # ^ ##### #???? | | #?# ! # ^^ #???# #???? | | #?# / / #???# #???? | | #?######## ^ ^ #???# #???? | | #???????###+#########???#w#???? | | ????????# #????????# #???? | | ????????# """ #????????# #???? | | ????????# """ #????????# #???? | | ????????# """ #?########%#???? | | ????????# #?# # #???? | | ????????# #?# !! #%#???? | | ????????##" "###?# !/ +%#???? | | ?????????#"G"#???# !/ #%#???? | | ?????????# " #???# # #???? | | ?????????#####???# # #???? | | ?????????????????####/### #???? | | ????????????????????# ??#@#???? | | ????????????????????# ??#a#???? | | ????????????????????#??? *!???? | | ???????????????????????? =%???? | | ??????????????????????? =[#??? | | ??????????????????????? ####??? | | ?????????????????????? ??????? | | ?????????????????????? ??????? | | ????????????????????? ??????? | | ????????????????????? ???????? | | ????????????????????# ???????? | | ????????????????????# ???????? | | ????????????????????# ????????? | | ????????????????????##????????? | | ??????????????????????????????? | | ??????????????????????????????? | | ??????????????????????????????? | | ??????????????????????????????? | | | | | | | | | | | | | | | +----------------------------------------------------+ Best States ------------- Heat Dissipation 42 Energy Generation 10 Energy Capacity 250 Matter Stores 300 Matter Capacity 300 Sight Range 16 Terrain Scan Density 10 Evasion (%) 55 Item Schematics ----------------- None Robot Schematics ------------------ None Fabricated ------------ Nothing Repaired ---------- Nothing Studied --------- None Alien Tech Used ----------------- None Achievements -------------- For Emergencies Only Challenges ------------ None Game ------ Seed GuidanceAluminumCyclogen Manual? 0 Play Time 00:11:54 Cumulative 10.2 hours Start 2025.11.21 @ 23:37:57 End 2025.12.12 @ 23:56:52 Sessions 3 Manual Loads 0 Difficulty Rogue Special Mode None Game No. 31 Rogue 30 Adventurer 0 Explorer 1 Win Type - Total 0 Types 0/0/0/0/0/0/0/0/0/0 Lore% 7 Gallery% 14 Achievement% 8 Wizard Run 0 Options --------- Layout 1 ASCII 0 Keyboard 0 Movement Mouse Keybinds 0 Fullscreen 1 Font 32/SmallcapsGlow Map View 50x35 Zoom Use 0% Tactical HUD 0 Map Filters NONE Filters NONE Steam 1 RUN: e7757bc8-c94d-4eb7-82bc-740f86be6481